{"text_format":"1","workbook":"xlsx","n_sheets":3,"sheets":["Interface","Carton","TirageAuto"],"not_rendered":{"charts":0,"images":16,"macros":1,"external_links":0,"defined_names":4,"comments":0,"pivot_tables":0},"unopened":[],"bounds":{"document_bytes":16777216,"sheet_cells":100000,"rows_first":2000,"rows_last":500,"rows_between":2000,"halvings":0,"cell_chars":16384,"cell_head_chars":4096},"cells_cut":0,"cells_raw":0,"read":"whole","date_system":"1900"}

{"sheet":"Interface","index":0,"n_rows":35,"n_cols":43,"rows_kept":35,"cut":false,"hidden":false,"merged":[[6,30,6,32],[8,30,8,32],[10,30,10,32],[27,38,31,40],[20,26,21,26],[20,28,21,28],[20,30,21,30],[20,4,21,4],[20,18,21,18],[20,20,21,20],[20,22,21,22],[20,24,21,24],[20,16,21,16],[20,8,21,8],[20,10,21,10],[20,12,21,12],[20,14,21,14],[23,22,24,22],[0,37,1,37],[16,26,16,28],[0,2,1,33],[0,35,1,35],[0,36,1,36],[14,6,14,12],[16,6,16,8],[14,14,14,20],[14,22,14,28],[16,10,16,12],[16,14,16,16],[16,18,16,20],[16,22,16,24],[0,34,2,34],[20,6,21,6],[30,36,30,37],[27,36,29,37],[24,6,24,7],[23,34,24,34],[23,26,24,30],[23,18,24,20],[23,37,24,37],[23,6,23,14],[24,8,24,14],[23,23,24,25],[29,6,30,6],[29,8,30,8],[29,10,30,10],[29,12,30,12],[29,14,30,14],[29,18,30,18],[26,4,27,22],[29,22,30,22],[29,16,30,16],[34,6,36,28],[25,34,31,35],[29,4,30,4],[29,20,30,20]]}
[null,null,{"$f":"Carton!AD9","v":"Casino Table de Jeu N° 1"},null,null,null,null,null,null,null,null,null,null,null,null,null,null,null,null,null,null,null,null,null,null,null,null,null,null,null,null,null,null,null,{"$f":"TirageAuto!N2","v":" "},{"$f":"TirageAuto!O2","v":" "},{"$f":"TirageAuto!P2","v":" "},{"$f":"TirageAuto!Q2","v":" "}]
[]
[]
[]
[]
[]
[null,null,null,null,null,null,3,null,6,null,9,null,12,null,15,null,18,null,21,null,24,null,27,null,30,null,33,null,36,null,null,null,null,null,null,null,null,null,null,null,null,{"$f":"IF($E$21=G7,\"ok\",IF($E$21=I7,\"ok\",IF($E$21=K7,\"ok\",IF($E$21=M7,\"ok\",IF($E$21=O7,\"ok\",IF($E$21=Q7,\"ok\",IF($E$21=S7,\"ok\",IF($E$21=U7,\"ok\",IF($E$21=W7,\"ok\",IF($E$21=Y7,\"ok\",IF($E$21=AA7,\"ok\",IF($E$21=AC7,\"ok\",0))))))))))))","v":0},{"$f":"TirageAuto!W1","v":" "}]
[]
[null,null,null,null,0,null,2,null,5,null,8,null,11,null,14,null,17,null,20,null,23,null,26,null,29,null,32,null,35,null,null,null,null,null,null,null,null,null,null,null,null,{"$f":"IF($E$21=G9,\"ok\",IF($E$21=I9,\"ok\",IF($E$21=K9,\"ok\",IF($E$21=M9,\"ok\",IF($E$21=O9,\"ok\",IF($E$21=Q9,\"ok\",IF($E$21=S9,\"ok\",IF($E$21=U9,\"ok\",IF($E$21=W9,\"ok\",IF($E$21=Y9,\"ok\",IF($E$21=AA9,\"ok\",IF($E$21=AC9,\"ok\",IF($E$21=E9,\"ok\",0)))))))))))))","v":0},{"$f":"TirageAuto!W2","v":" "}]
[]
[null,null,null,null,null,null,1,null,4,null,7,null,10,null,13,null,16,null,19,null,22,null,25,null,28,null,31,null,34,null,null,null,null,null,null,null,null,null,null,null,null,{"$f":"IF($E$21=G11,\"ok\",IF($E$21=I11,\"ok\",IF($E$21=K11,\"ok\",IF($E$21=M11,\"ok\",IF($E$21=O11,\"ok\",IF($E$21=Q11,\"ok\",IF($E$21=S11,\"ok\",IF($E$21=U11,\"ok\",IF($E$21=W11,\"ok\",IF($E$21=Y11,\"ok\",IF($E$21=AA11,\"ok\",IF($E$21=AC11,\"ok\",0))))))))))))","v":0},{"$f":"TirageAuto!W3","v":" "}]
[]
[]
[]
[null,null,null,null,null,null,"1ers 12",null,null,null,null,null,null,null,"2nde 12",null,null,null,null,null,null,null,"3ème 12"]
[]
[null,null,null,null,null,null,"1 - 18",null,null,null,"Pairs",null,null,null,null,null,null,null,null,null,null,null,"Impairs",null,null,null,"19 - 36"]
[]
[]
[]
[null,null,null,null,{"$f":"TirageAuto!N3","v":" "},null,{"$f":"TirageAuto!N4","v":" "},null,{"$f":"TirageAuto!N5","v":" "},null,{"$f":"TirageAuto!N6","v":" "},null,{"$f":"TirageAuto!N7","v":" "},null,{"$f":"TirageAuto!N8","v":" "},null,{"$f":"TirageAuto!N9","v":" "},null,{"$f":"TirageAuto!N10","v":" "},null,{"$f":"TirageAuto!N11","v":" "},null,{"$f":"TirageAuto!N12","v":" "},null,{"$f":"TirageAuto!N13","v":" "},null,{"$f":"TirageAuto!N14","v":" "},null,{"$f":"TirageAuto!N15","v":" "},null,{"$f":"TirageAuto!N16","v":" "}]
[]
[null,null,null,null,{"$f":"IF(E21=0,\"Vert\",LOOKUP(E21,TirageAuto!$E$1:$F$37))","v":{"$error":"#N/A"}},null,{"$f":"IF(G21=0,\"Vert\",LOOKUP(G21,TirageAuto!$E$1:$F$37))","v":{"$error":"#N/A"}},null,{"$f":"IF(I21=0,\"Vert\",LOOKUP(I21,TirageAuto!$E$1:$F$37))","v":{"$error":"#N/A"}},null,{"$f":"IF(K21=0,\"Vert\",LOOKUP(K21,TirageAuto!$E$1:$F$37))","v":{"$error":"#N/A"}},null,{"$f":"IF(M21=0,\"Vert\",LOOKUP(M21,TirageAuto!$E$1:$F$37))","v":{"$error":"#N/A"}},null,{"$f":"IF(O21=0,\"Vert\",LOOKUP(O21,TirageAuto!$E$1:$F$37))","v":{"$error":"#N/A"}},null,{"$f":"IF(Q21=0,\"Vert\",LOOKUP(Q21,TirageAuto!$E$1:$F$37))","v":{"$error":"#N/A"}},null,{"$f":"IF(S21=0,\"Vert\",LOOKUP(S21,TirageAuto!$E$1:$F$37))","v":{"$error":"#N/A"}},null,{"$f":"IF(U21=0,\"Vert\",LOOKUP(U21,TirageAuto!$E$1:$F$37))","v":{"$error":"#N/A"}},null,{"$f":"IF(W21=0,\"Vert\",LOOKUP(W21,TirageAuto!$E$1:$F$37))","v":{"$error":"#N/A"}},null,{"$f":"IF(Y21=0,\"Vert\",LOOKUP(Y21,TirageAuto!$E$1:$F$37))","v":{"$error":"#N/A"}},null,{"$f":"IF(AA21=0,\"Vert\",LOOKUP(AA21,TirageAuto!$E$1:$F$37))","v":{"$error":"#N/A"}},null,{"$f":"IF(AC21=0,\"Vert\",LOOKUP(AC21,TirageAuto!$E$1:$F$37))","v":{"$error":"#N/A"}},null,{"$f":"IF(AE21=0,\"Vert\",LOOKUP(AE21,TirageAuto!$E$1:$F$37))","v":{"$error":"#N/A"}}]
[null,null,null,null,null,null,"Développer par le",null,null,null,null,null,null,null,null,null,null,null,"Version : ",null,null,null,{"$f":"Carton!AD11","v":"2,02"},"N° Série :",null,null,{"$f":"Carton!AD13","v":"SR-2016-10-0001-AM"},null,null,null,null,null,null,null,{"$f":"TirageAuto!R2","v":" "},null,null,{"$f":"TirageAuto!S2","v":" "}]
[null,null,null,null,null,null,"Site :",null,{"$f":"Carton!AD14","v":"Mich-Logiciel.fr"}]
[]
[null,null,null,null,"Réglage de la Couleur du fond du Jeu"]
[null,null,null,null,null,null,null,null,null,null,null,null,null,null,null,null,null,null,null,null,null,null,null,null,null,null,null,null,null,null,null,null,null,null,null,null,"Nombres de Tours",null,5]
[]
[]
[null,null,null,null,null,null,null,null,null,null,null,null,null,null,null,null,null,null,null,null,null,null,null,null,null,null,null,null,null,null,null,null,null,null,null,null,"Maxi = 20  Mini = 5"]
[]
[]
[]
[null,null,null,null,null,null,"Pour le jeu, passer en Plein Écran avec le bouton ci-dessus"]

{"sheet":"Carton","index":1,"n_rows":16,"n_cols":31,"rows_kept":16,"cut":false,"hidden":true,"merged":[[11,29,11,30],[12,29,12,30],[13,29,13,30],[14,29,14,30],[15,29,15,30]]}
[]
[]
[]
[]
[]
[null,null,null,null,null,null,null,null,null,null,null,null,null,null,null,null,null,null,null,null,null,null,null,null,null,null,null,null,null,null,0]
[]
[]
[null,null,null,null,null,null,null,null,null,null,null,null,null,null,null,null,null,null,null,null,null,null,null,null,null,null,null,null,null,"Casino Table de Jeu N° 1"]
[]
[null,null,null,null,null,null,null,null,null,null,null,null,null,null,null,null,null,null,null,null,null,null,null,null,null,null,null,null,null,"2,02"]
[]
[null,null,null,null,null,null,null,null,null,null,null,null,null,null,null,null,null,null,null,null,null,null,null,null,null,null,null,null,null,"SR-2016-10-0001-AM"]
[null,null,null,null,null,null,null,null,null,null,null,null,null,null,null,null,null,null,null,null,null,null,null,null,null,null,null,null,null,"Mich-Logiciel.fr"]
[null,null,null,null,null,null,null,null,null,null,null,null,null,null,null,null,null,null,null,null,null,null,null,null,null,null,null,null,null,23]
[null,null,null,null,null,null,null,null,null,null,null,null,null,null,null,null,null,null,null,null,null,null,null,null,null,null,null,null,null,{"$f":"RIGHT(AD9,AD15-5)","v":" Table de Jeu N° 1"}]

{"sheet":"TirageAuto","index":2,"n_rows":37,"n_cols":285,"rows_kept":37,"cut":false,"hidden":true,"merged":[]}
[29,1,0,null,0,"Vert",null,"Manque",null,null,null,null,null,{"$f":"A1","v":29},"Noir","Impairs","Passe","3ème 12","19 - 36",null,null,"Op7"," ",null,null,null,null,null,null,null,null,null,null,null,null,null,null,null,null,null,null,null,null,null,null,null,null,null,null,null,null,null,null,null,null,null,null,null,null,null,null,null,null,null,null,null,null,null,null,null,null,null,null,null,null,null,null,null,null,null,null,null,null,null,null,null,null,null,null,null,null,null,null,null,null,null,null,null,null,null,null,null,null,null,null,null,null,null,null,null,null,null,null,null,null,null,null,null,null,null,null,null,null,null,null,null,null,null,null,null,null,null,null,null,null,null,null,null,null,null,null,null,null,null,null,null,null,null,null,null,null,null,null,null,null,null,null,null,null,null,null,null,null,null,null,null,null,null,null,null,null,null,null,null,null,null,null,null,null,null,null,null,null,null,null,null,null,null,null,null,null,null,null,null,null,null,null,null,null,null,null,null,null,null,64,7,79,70,16,14,74,66,46,42,62,52,30,38,1,60,76,55,63,49,90,9,88,54,17,48,61,19,56,6,57,45,75,10,5,83,4,50,25,82,34,81,41,2,84,58,21,85,67,39,3,13,33,87,53,72,8,28,15,44,43,36,71,31,22,11,51,24,12,27,89,47,40,23,32,65,73,69,78,78,78]
[30,2,{"$f":"LOOKUP(C1,B1:B37,A1:A37)","v":{"$error":"#N/A"}},null,1,"Rouge","Impairs","Manque","1ers 12","1 - 18",null,null,null," "," "," "," "," "," ",null,null,"Op9"," "]
[19,3,0,null,2,"Noir","Pairs","Manque","1ers 12","1 - 18",null,null,null," ",null,null,null,null,null,null,null,"Op11"," "]
[34,4,0,null,3,"Rouge","Impairs","Manque","1ers 12","1 - 18",null,null,null," "]
[32,5,null,null,4,"Noir","Pairs","Manque","1ers 12","1 - 18",null,null,null," "]
[21,6,null,null,5,"Rouge","Impairs","Manque","1ers 12","1 - 18",null,null,null," "]
[26,7,null,null,6,"Noir","Pairs","Manque","1ers 12","1 - 18",null,null,null," "]
[2,8,null,null,7,"Rouge","Impairs","Manque","1ers 12","1 - 18",null,null,null," "]
[7,9,null,null,8,"Noir","Pairs","Manque","1ers 12","1 - 18",null,null,null," "]
[22,10,null,null,9,"Rouge","Impairs","Manque","1ers 12","1 - 18",null,null,null," "]
[8,11,null,null,10,"Noir","Pairs","Manque","1ers 12","1 - 18",null,null,null," "]
[27,12,null,null,11,"Noir","Impairs","Manque","1ers 12","1 - 18",null,null,null," "]
[17,13,null,null,12,"Rouge","Pairs","Manque","1ers 12","1 - 18",null,null,null," "]
[24,14,null,null,13,"Noir","Impairs","Manque","2nde 12","1 - 18",null,null,null," "]
[15,15,null,null,14,"Rouge","Pairs","Manque","2nde 12","1 - 18",null,null,null," "]
[1,16,null,null,15,"Noir","Impairs","Manque","2nde 12","1 - 18",null,null,null," "]
[6,17,null,null,16,"Rouge","Pairs","Manque","2nde 12","1 - 18"]
[25,18,null,null,17,"Noir","Impairs","Manque","2nde 12","1 - 18"]
[10,19,null,null,18,"Rouge","Pairs","Manque","2nde 12","1 - 18"]
[3,20,null,null,19,"Rouge","Impairs","Passe","2nde 12","19 - 36"]
[18,21,null,null,20,"Noir","Pairs","Passe","2nde 12","19 - 36"]
[20,22,null,null,21,"Rouge","Impairs","Passe","2nde 12","19 - 36"]
[5,23,null,null,22,"Noir","Pairs","Passe","2nde 12","19 - 36"]
[9,24,null,null,23,"Rouge","Impairs","Passe","2nde 12","19 - 36"]
[12,25,null,null,24,"Noir","Pairs","Passe","2nde 12","19 - 36"]
[31,26,null,null,25,"Rouge","Impairs","Passe","3ème 12","19 - 36"]
[13,27,null,null,26,"Noir","Pairs","Passe","3ème 12","19 - 36"]
[37,28,null,null,27,"Rouge","Impairs","Passe","3ème 12","19 - 36"]
[28,29,null,null,28,"Noir","Pairs","Passe","3ème 12","19 - 36"]
[16,30,null,null,29,"Noir","Impairs","Passe","3ème 12","19 - 36"]
[35,31,null,null,30,"Rouge","Pairs","Passe","3ème 12","19 - 36"]
[4,32,null,null,31,"Noir","Impairs","Passe","3ème 12","19 - 36"]
[11,33,null,null,32,"Rouge","Pairs","Passe","3ème 12","19 - 36"]
[36,34,null,null,33,"Noir","Impairs","Passe","3ème 12","19 - 36"]
[23,35,null,null,34,"Rouge","Pairs","Passe","3ème 12","19 - 36"]
[14,36,null,null,35,"Noir","Impairs","Passe","3ème 12","19 - 36"]
[33,37,null,null,36,"Rouge","Pairs","Passe","3ème 12","19 - 36"]